fUSD/lending_fUSD_20250602
["ID","MTS","AMOUNT","RATE_DAILY","PERIOD"]
[363818781,1748885455761,-1045.26793,0.00023463,7]
[363818783,1748885455772,-151.0,0.00023463,7]
[363818785,1748885455782,-404.504214,0.00023463,7]
[363818787,1748885455793,-151.0,0.00023463,7]
[363818789,1748885455803,-404.504214,0.00023463,7]
[363818791,1748885455813,-889.970059,0.00023463,7]
[363818793,1748885455823,-889.970059,0.00023463,7]
[363818795,1748885455833,-426.979664,0.00023463,7]
[363818797,1748885455843,-426.979664,0.00023463,7]
[363818799,1748885455853,-151.0,0.00023463,7]
[363818801,1748885455864,-151.0,0.00023463,7]
[363818803,1748885455874,-151.0,0.00023463,7]
[363818805,1748885455884,-151.0,0.00023463,7]
[363818807,1748885455894,-6494.134523,0.00023463,7]
[363818810,1748885455904,-6494.134523,0.00023463,7]
[363818812,1748885455914,-819.829728,0.00023463,7]
[363818814,1748885455926,-819.829728,0.00023463,7]
[363818816,1748885455936,-917.485102,0.00023463,7]
[363818818,1748885455946,-917.485102,0.00023463,7]
[363818820,1748885455957,-151.0,0.00023463,7]
[363818822,1748885455967,-151.0,0.00023463,7]
[363818824,1748885455977,-151.0,0.00023463,7]
[363818826,1748885455987,-232.60676,0.00023463,7]
[363818828,1748885455996,-10000.0,0.00023463,7]
[363818830,1748885456006,-540.0,0.00023466,30]
[363818832,1748885456017,-506.0,0.00023466,30]
[363818834,1748885456027,-2351.0,0.00023481,2]
[363818836,1748885456038,-540.0,0.00023493,30]
[363818838,1748885456048,-506.0,0.00023493,30]
[363818840,1748885456063,-200.0,0.000235,2]
[363818842,1748885456073,-1000.0,0.000235,2]
[363818844,1748885456084,-540.0,0.00023521,30]
[363818847,1748885456094,-506.0,0.00023521,30]
[363818849,1748885456106,-334.119589,0.00023543,2]
[363818851,1748885456117,-540.0,0.00023548,30]
[363818853,1748885456127,-506.0,0.00023548,30]
[363818855,1748885456139,-494.0,0.00023562,7]
[363818857,1748885456150,-59831.39,0.00023562,2]
[363818859,1748885456161,-151.0,0.00023562,7]
[363818861,1748885456172,-151.0,0.00023562,7]
[363818863,1748885456183,-151.0,0.00023562,7]
[363818865,1748885456195,-151.0,0.00023562,7]
[363818867,1748885456206,-151.0,0.00023562,7]
[363818870,1748885456217,-151.0,0.00023562,7]
[363818872,1748885456227,-254.150664,0.00023562,7]
[363818874,1748885456238,-151.0,0.00023562,7]
[363818876,1748885456248,-353.522937,0.00023562,7]
[363818878,1748885456259,-353.522937,0.00023562,7]
[363818880,1748885456270,-151.0,0.00023562,7]
[363818882,1748885456280,-151.0,0.00023562,7]
[363818884,1748885456290,-158.36503,0.00023562,7]
[363818886,1748885456301,-158.36503,0.00023562,7]
[363818888,1748885456311,-540.0,0.00023575,30]
[363818890,1748885456321,-506.0,0.00023575,30]
[363818892,1748885456331,-152.0,0.00023594,5]
[363818894,1748885456341,-540.0,0.00023603,30]
[363818896,1748885456351,-506.0,0.00023603,30]
[363818898,1748885456361,-1084.31791407,0.00023618,2]
[363818900,1748885456371,-1005.88674124,0.00023618,2]
[363818902,1748885456381,-1134.55571697,0.00023618,2]
[363818905,1748885456392,-1061.56479524,0.00023618,2]
[363818906,1748885456402,-1047.05832611,0.00023618,2]
[363818908,1748885456412,-1057.2355664,0.00023618,2]
[363818911,1748885456424,-1100.38726797,0.00023618,2]
[363818913,1748885456434,-1002.61128942,0.00023618,2]
[363818915,1748885456444,-1069.79046243,0.00023618,2]
[363818917,1748885456454,-1073.65055517,0.00023618,2]
[363818919,1748885456464,-543.38,0.0002363,30]
[363818921,1748885456474,-529.71894019,0.0002363,30]
[363818923,1748885456484,-1000.0,0.00023657,2]
[363818925,1748885456495,-17642.19716034,0.0002366,2]
[363818927,1748885456506,-5631.17961031,0.00023693,9]
[363818929,1748885456520,-238.02128021,0.00023725,2]
[363818932,1748885456531,-769.21,0.00023742,2]
[363818934,1748885456541,-3025.94501513,0.00023812,2]
[363818936,1748885456551,-3000.0,0.00023812,2]
[363818938,1748885456560,-2516.88754574,0.00023812,2]
[363818939,1748885456571,-578.3965771,0.00023812,2]
[363818940,1748885456582,-494.0,0.00023836,7]
[363818941,1748885456592,-1700.61,0.00023836,2]
[363818942,1748885456602,-151.0,0.00023836,2]
[363818943,1748885456612,-231.28369723,0.0002385,2]
[363818944,1748885456622,-432.78309335,0.00023886,2]
[363818945,1748885456632,-152.0,0.00023969,6]
[363818946,1748885456642,-434.0,0.00023986,2]
[363818948,1748885456652,-168.3888056,0.00023995,2]
[363818950,1748885456662,-310.7103528,0.00023995,2]
[363818952,1748885456674,-4000.0,0.00024,4]
[363818954,1748885456684,-1000.0,0.00024,2]
[363818956,1748885456694,-150.0,0.00024,2]
[363818958,1748885456704,-1000.0,0.00024,3]
[363818960,1748885456714,-1000.0,0.00024,3]
[363818962,1748885456724,-1000.0,0.00024,3]
[363818964,1748885456734,-1000.0,0.00024,3]
[363818966,1748885456744,-1000.0,0.00024,3]
[363818968,1748885456754,-1000.0,0.00024,3]
[363818971,1748885456764,-1000.0,0.00024,3]
[363818973,1748885456774,-1735.44,0.00024,7]
[363818975,1748885456784,-59884.31439714,0.00024,2]
[363818977,1748885456794,-989.27231923,0.00024,2]
[363818979,1748885456804,-2679.62193015,0.00024,2]
[363818982,1748885456823,-68925.57605417,0.00024,2]
[363818984,1748885456835,-644.52181505,0.00024,2]
[363818986,1748885456847,-522.3990736,0.00024,2]
[363818988,1748885456859,-717.31111569,0.00024,2]
[363819040,1748885457382,-295.99920458,0.0002041,2]
[363819041,1748885457395,-1974.40892082,0.0002041,2]
[363819043,1748885457406,-500.0,0.00020546,2]
[363819044,1748885457415,-500.0,0.00020546,2]
[363819046,1748885457425,-500.0,0.00020546,2]
[363819047,1748885457435,-500.0,0.00020546,2]
[363819049,1748885457444,-500.0,0.00020546,2]
[363819050,1748885457454,-500.0,0.00020546,2]
[363819052,1748885457463,-268.76722416,0.00020546,2]
[363819054,1748885457475,-231.23277584,0.00020546,2]
[363819055,1748885457485,-500.0,0.00020546,2]
[363819057,1748885457494,-935.80436579,0.00024,2]
[363819059,1748885457511,-500.0,0.00020546,2]
[363819061,1748885457524,-5897.71209701,0.00024,2]
[363819064,1748885457562,-1750.92812575,0.000219,2]
[363819065,1748885457573,-17113.73768507,0.000219,2]
[363819067,1748885457583,-22519.86418438,0.00024,2]
[363819069,1748885457592,-1012.52,0.00024,3]
[363819070,1748885457602,-250.84994802,0.00024,10]
[363819072,1748885457617,-1800.0,0.00024,25]
[363819074,1748885457626,-151.0,0.00024,7]
[363819075,1748885457636,-29628.30352102,0.00024,5]
[363819077,1748885457645,-500.0,0.00024048,2]
[363819079,1748885457654,-5606.4788931,0.00024068,2]
[363819080,1748885457664,-10736.2618333,0.00024068,2]
[363819082,1748885457676,-66673.7019666,0.00024084,2]
[363819084,1748885457685,-250.0,0.000241,30]
[363819085,1748885457695,-198565.18776823,0.000241,7]
[363819115,1748885458048,-500.0,0.00019998,2]
[363819117,1748885458063,-500.0,0.00019998,2]
[363819119,1748885458073,-500.0,0.00019998,2]
[363819121,1748885458082,-603.39115573,0.00019998,2]
[363819123,1748885458092,-500.0,0.00019998,2]
[363819125,1748885458103,-500.0,0.00019998,2]
[363819127,1748885458113,-500.0,0.00019999,2]
[363819129,1748885458122,-500.0,0.00019999,2]
[363819131,1748885458132,-500.0,0.00019999,2]
[363819133,1748885458141,-500.0,0.00019999,2]
[363819135,1748885458150,-500.0,0.00019999,2]
[363819137,1748885458160,-500.0,0.00019999,2]
[363819139,1748885458169,-151.0,0.0002,2]
[363819140,1748885458179,-7010.0,0.00020055,2]
[363819142,1748885458188,-500.0,0.00020546,2]
[363819144,1748885458197,-500.0,0.00020546,2]
[363819146,1748885458207,-500.0,0.00020546,2]
[363819148,1748885458216,-500.0,0.00020546,2]
[363819150,1748885458225,-500.0,0.00020546,2]
[363819152,1748885458235,-500.0,0.00020546,2]
[363819154,1748885458246,-500.0,0.00020546,2]
[363819155,1748885458255,-500.0,0.00020546,2]
[363819156,1748885458264,-500.0,0.00020546,2]
[363819157,1748885458275,-876.0,0.000219,2]
[363819158,1748885458285,-60370.88397636,0.000241,7]
[363819159,1748885458348,-500.0,0.00019999,2]
[363819160,1748885458358,-500.0,0.00019999,2]
[363819161,1748885458367,-500.0,0.00019999,2]
[363819162,1748885458376,-151.0,0.0002,2]
[363819163,1748885458385,-500.0,0.00020546,2]
[363819164,1748885458394,-7010.0,0.00023055,2]
[363819165,1748885458404,-63220.32825541,0.000241,7]
[363819166,1748885458413,-151.0,0.000241,7]
[363819167,1748885458424,-151.0,0.000241,7]
[363819168,1748885458433,-151.0,0.000241,7]
[363819169,1748885458443,-151.0,0.000241,7]
[363819170,1748885458453,-151.0,0.000241,7]
[363819171,1748885458462,-151.0,0.000241,7]
[363819173,1748885458472,-205.094756,0.000241,7]
[363819174,1748885458481,-151.0,0.000241,7]
[363819175,1748885458491,-157.294704,0.000241,7]
[363819177,1748885458500,-151.0,0.000241,7]
[363819179,1748885458510,-91.48921422,0.000241,7]
[363819182,1748885458526,-59.51078578,0.000241,7]
[363819184,1748885458536,-151.0,0.000241,7]
[363819186,1748885458546,-151.0,0.000241,7]
[363819188,1748885458555,-179.92536,0.000241,7]
[363819190,1748885458565,-179.92536,0.000241,7]
[363819192,1748885458574,-151.0,0.000241,7]
[363819194,1748885458583,-151.0,0.000241,7]
[363819196,1748885458592,-151.0,0.000241,7]
[363819198,1748885458601,-151.0,0.000241,7]
[363819200,1748885458610,-207.461919,0.000241,7]
[363819202,1748885458619,-151.0,0.000241,7]
[363819204,1748885458628,-151.655062,0.000241,7]
[363819205,1748885458636,-151.655062,0.000241,7]
[363819207,1748885458646,-151.0,0.000241,7]
[363819209,1748885458655,-151.0,0.000241,7]
[363819211,1748885458664,-151.0,0.000241,7]
[363819213,1748885458675,-151.0,0.000241,7]
[363819215,1748885458684,-151.0,0.000241,7]
[363819217,1748885458694,-151.0,0.000241,7]
[363819219,1748885458702,-160.57206,0.000241,7]
[363819221,1748885458711,-160.57206,0.000241,7]
[363819223,1748885458721,-691.364666,0.000241,7]
[363819225,1748885458730,-466.27029189,0.000241,7]
[363819228,1748885458746,-384.5225424,0.00019999,2]
[363819230,1748885458755,-184.87348168,0.000241,7]
[363819232,1748885458767,-40.22089243,0.000241,7]
[363819234,1748885458776,-156.176086,0.000241,7]
[363819236,1748885458787,-161.1904,0.000241,7]
[363819238,1748885458796,-151.0,0.000241,7]
[363819240,1748885458805,-47.81262157,0.000241,7]
[363819242,1748885458816,-103.18737843,0.000241,7]
[363819244,1748885458826,-151.0,0.000241,7]
[363819246,1748885458835,-151.0,0.000241,7]
[363819248,1748885458844,-151.652471,0.000241,7]
[363819250,1748885458854,-345.216137,0.000241,7]
[363819252,1748885458863,-345.216137,0.000241,7]
[363819254,1748885458871,-151.0,0.000241,7]
[363819256,1748885458880,-151.0,0.000241,7]
[363819258,1748885458889,-151.0,0.000241,7]
[363819260,1748885458898,-472.64279706,0.000241,7]
[363819262,1748885458910,-36.18379094,0.000241,7]
[363819264,1748885458920,-508.826588,0.000241,7]
[363819266,1748885458929,-172.910656,0.000241,7]
[363819268,1748885458938,-172.910656,0.000241,7]
[363819270,1748885458947,-151.0,0.000241,7]
[363819272,1748885458956,-151.0,0.000241,7]
[363819274,1748885458965,-12.26830154,0.000241,7]
[363819276,1748885458976,-187.03735146,0.000241,7]
[363819278,1748885458986,-151.0,0.000241,7]
[363819280,1748885458995,-151.0,0.000241,7]
[363819282,1748885459009,-151.0,0.000241,7]
[363819285,1748885459024,-151.0,0.000241,7]
[363819287,1748885459038,-182.168884,0.000241,7]
[363819290,1748885459050,-182.168884,0.000241,7]
[363819292,1748885459067,-207.305105,0.000241,7]
[363819294,1748885459078,-151.0,0.000241,7]
[363819297,1748885459091,-207.305105,0.000241,7]
[363819299,1748885459105,-185.081108,0.000241,7]
[363819301,1748885459117,-151.0,0.000241,7]
[363819304,1748885459130,-151.0,0.000241,7]
[363819306,1748885459143,-151.0,0.000241,7]
[363819308,1748885459156,-151.0,0.000241,7]
[363819311,1748885459168,-151.0,0.000241,7]
[363819313,1748885459180,-242.014213,0.000241,7]
[363819315,1748885459191,-242.014213,0.000241,7]
[363819317,1748885459203,-151.0,0.000241,7]
[363819319,1748885459215,-176.205144,0.000241,7]
[363819322,1748885459227,-176.205144,0.000241,7]
[363819324,1748885459240,-151.0,0.000241,7]
[363819326,1748885459252,-1045.26793,0.000241,7]
[363819329,1748885459268,-384.22691854,0.000241,7]
[363819333,1748885459301,-500.0,0.00019999,2]
[363819336,1748885459316,-500.0,0.00020546,2]
[363819338,1748885459328,-619.03969933,0.000241,7]
[363819341,1748885459344,-42.00131213,0.000241,7]
[363819343,1748885459356,-151.0,0.000241,7]
[363819345,1748885459368,-404.504214,0.000241,7]
[363819348,1748885459381,-151.0,0.000241,7]
[363819350,1748885459393,-404.504214,0.000241,7]
[363819353,1748885459408,-734.92142292,0.000241,7]
[363819355,1748885459423,-155.04863608,0.000241,7]
[363819357,1748885459434,-889.970059,0.000241,7]
[363819360,1748885459446,-426.979664,0.000241,7]
[363819362,1748885459456,-426.979664,0.000241,7]
[363819364,1748885459466,-151.0,0.000241,7]
[363819366,1748885459478,-151.0,0.000241,7]
[363819368,1748885459491,-151.0,0.000241,7]
[363819371,1748885459506,-151.0,0.000241,7]
[363819373,1748885459516,-6494.134523,0.000241,7]
[363819375,1748885459526,-391.29791884,0.000241,7]
[363819391,1748885459662,-6102.83660416,0.000241,7]
[363819393,1748885459674,-819.829728,0.000241,7]
[363819395,1748885459685,-819.829728,0.000241,7]
[363819397,1748885459696,-917.485102,0.000241,7]
[363819400,1748885459708,-917.485102,0.000241,7]
[363819402,1748885459718,-151.0,0.000241,7]
[363819404,1748885459729,-151.0,0.000241,7]
[363819406,1748885459740,-151.0,0.000241,7]
[363819408,1748885459751,-151.0,0.00024109,7]
[363819410,1748885459762,-151.0,0.00024109,7]
[363819413,1748885459773,-494.0,0.0002411,7]
[363819415,1748885459785,-1000.0,0.00024134,2]
[363819417,1748885459797,-494.0,0.00024164,7]
[363819419,1748885459809,-160.0,0.00024164,7]
[363819422,1748885459820,-1000.0,0.000242,2]
[363819424,1748885459831,-408.86175416,0.0002421,2]
[363819426,1748885459842,-3583.51427335,0.0002421,2]
[363819428,1748885459854,-159.400632,0.0002421,7]
[363819431,1748885459865,-353.522937,0.0002421,7]
[363819433,1748885459877,-353.522937,0.0002421,7]
[363819435,1748885459887,-151.0,0.0002421,7]
[363819437,1748885459899,-151.0,0.0002421,7]
[363819439,1748885459911,-158.36503,0.0002421,7]
[363819442,1748885459922,-158.36503,0.0002421,7]
[363819444,1748885459933,-334.119589,0.00024271,2]
[363819446,1748885459944,-1023.92236568,0.00024333,2]
[363819448,1748885459956,-500.0,0.00024333,2]
[363819450,1748885459967,-152.0,0.00024345,7]
[363819452,1748885459978,-2606.41077731,0.0002436,2]
[363819455,1748885459990,-1100.0,0.00024365,2]
[363819457,1748885460001,-2000.0,0.00024378,2]
[363819459,1748885460013,-2000.0,0.00024378,2]
[363819461,1748885460025,-151.0,0.00024378,7]
[363819464,1748885460038,-151.0,0.00024378,7]
[363819466,1748885460051,-151.0,0.00024378,7]
[363819468,1748885460067,-151.0,0.00024378,7]
[363819470,1748885460079,-152.0,0.00024384,2]
[363819472,1748885460091,-913.25289111,0.000244,2]
[363819602,1748885462135,460.0,0.00041095,120]
[363819603,1748885466229,460.0,0.00041095,120]
[363819604,1748885467241,460.0,0.00041095,120]
[363819605,1748885486945,1062.83,0.00041095,120]
[363819606,1748885488250,30174.10592034,0.00041095,120]
[363819607,1748885490385,460.0,0.00041095,120]
[363819608,1748885490783,460.0,0.00041095,120]
[363819609,1748885494497,460.0,0.00041095,120]
[363819610,1748885501889,460.0,0.00041095,120]
[363819611,1748885503594,500.0,0.00039718,120]
[363819612,1748885517165,1045.77,0.00041095,120]
[363819613,1748885517952,460.0,0.00041095,120]
[363819614,1748885547624,3112.72,0.00041095,120]
[363819615,1748885549105,1315.54,0.00041095,120]
[363819616,1748885550106,460.0,0.00041095,120]
[363819617,1748885564074,1489.77,0.00041095,120]
[363819618,1748885575428,483.51,0.00041095,120]
[363819619,1748885575862,460.0,0.00041095,120]
[363819620,1748885579118,978.99,0.00041095,120]
[363819621,1748885583401,460.0,0.00041095,120]
[363819622,1748885587544,460.0,0.00041095,120]
[363819623,1748885593794,460.0,0.00041095,120]
[363819624,1748885599070,460.0,0.00041095,120]
[363819625,1748885602973,163.01,0.00013699,2]
[363819626,1748885605592,460.0,0.00041095,120]
[363819628,1748885613989,476.83,0.00041095,120]
[363819629,1748885619888,460.0,0.00041095,120]
[363819630,1748885622129,460.0,0.00041095,120]
[363819631,1748885627425,460.0,0.00041095,120]
[363819632,1748885629639,657.45,0.00041095,120]
[363819633,1748885633989,6231.15,0.00041096,120]
[363819634,1748885641621,789.71,0.00041095,120]
[363819635,1748885646629,1904.11,0.00041095,120]
[363819636,1748885648086,720.58,0.00041095,120]
[363819637,1748885649678,460.0,0.00041095,120]
[363819638,1748885655365,460.0,0.00041095,120]
[363819639,1748885660370,350.0,0.00041055,120]
[363819640,1748885670444,460.0,0.00041095,120]
[363819641,1748885679458,460.0,0.00041095,120]
[363819642,1748885684695,460.0,0.00041095,120]
[363819643,1748885690998,1018.54,0.00041095,120]
[363819644,1748885691411,460.0,0.00041095,120]
[363819645,1748885701262,500.53,0.00041095,120]
[363819646,1748885705854,1002.2,0.00041095,120]
[363819647,1748885715383,3991.8001994,0.0004109,120]
[363819648,1748885717735,460.0,0.00041095,120]
[363819649,1748885744312,1260.72,0.00041095,120]
[363819650,1748885775698,2694.81072644,0.00041096,120]
[363819651,1748885778195,2983.02,0.00041095,120]
[363819652,1748885781011,334.71167042,0.00041095,120]
[363819653,1748885792099,1427.69,0.00041095,120]
[363819654,1748885803006,460.0,0.00041095,120]
[363819655,1748885804682,478.88,0.00041095,120]
[363819656,1748885808189,460.0,0.00041095,120]
[363819657,1748885808614,938.19,0.00041095,120]
[363819658,1748885817428,463.36,0.00041095,120]
[363819659,1748885818029,295.22573176,0.00041095,120]
[363819660,1748885823520,460.0,0.00041095,120]
[363819661,1748885824768,460.0,0.00041095,120]
[363819662,1748885825561,168.95,0.0001638,2]
[363819663,1748885826520,460.0,0.00041095,120]
[363819664,1748885829573,460.0,0.00041095,120]
[363819665,1748885838911,756.81,0.00041095,120]
[363819666,1748885843246,460.0,0.00041095,120]
[363819667,1748885847494,460.0,0.00041095,120]
[363819668,1748885848649,460.0,0.00041095,120]
[363819669,1748885849401,460.0,0.00041095,120]
[363819670,1748885851915,460.0,0.00041095,120]
[363819671,1748885873138,460.0,0.00041095,120]
[363819672,1748885874458,1824.77,0.00041095,120]
[363819673,1748885877033,460.0,0.00041095,120]
[363819674,1748885881381,690.55,0.00041095,120]
[363819675,1748885884212,460.0,0.00041095,120]
[363819676,1748885892302,300.0,0.00041095,120]
[363819677,1748885893361,460.0,0.00041095,120]
[363819678,1748885898056,960.44,0.00041095,120]
[363819679,1748885899920,460.0,0.00041095,120]
[363819680,1748885922006,976.1,0.00041095,120]
[363819681,1748885956214,460.0,0.00041095,120]
[363819682,1748885967810,350.0,0.00041055,120]
[363819683,1748885971173,1000.0,0.00041,120]
[363819684,1748885989958,1208.19,0.00041095,120]
[363819685,1748886012108,2858.73,0.00041095,120]
[363819686,1748886027838,1368.21,0.00041095,120]
[363819687,1748886039758,460.0,0.00041095,120]
[363819688,1748886042101,899.1,0.00041095,120]
[363819689,1748886044023,460.0,0.00041095,120]
[363819690,1748886056360,460.0,0.00041095,120]
[363819691,1748886064108,460.0,0.00041095,120]
[363819692,1748886066904,460.0,0.00041095,120]
[363819693,1748886082945,725.27,0.00041095,120]
[363819694,1748886083373,460.0,0.00041095,120]
[363819695,1748886090671,460.0,0.00041095,120]
[363819696,1748886091741,460.0,0.00041095,120]
[363819697,1748886092195,460.0,0.00041095,120]
[363819698,1748886096128,460.0,0.00041095,120]
[363819700,1748886098978,460.0,0.00041095,120]
[363819701,1748886117428,551.54,0.00041095,120]
[363819702,1748886119557,460.0,0.00041095,120]
[363819703,1748886122955,460.0,0.00041095,120]
[363819704,1748886124393,1748.74,0.00041095,120]
[363819705,1748886127565,661.78,0.00041095,120]
[363819706,1748886129759,460.0,0.00041095,120]
[363819707,1748886144237,920.42,0.00041095,120]
[363819708,1748886151896,460.0,0.00041095,120]
[363819709,1748886160822,460.0,0.00041095,120]
[363819710,1748886175215,935.43,0.00041095,120]
[363819711,1748886177776,318.82073253,0.0004,120]
[363819712,1748886198703,460.0,0.00041095,120]
[363819713,1748886263919,1157.85,0.00041095,120]
[363819714,1748886272625,2739.62,0.00041095,120]
[363819715,1748886273145,1311.2,0.00041095,120]
[363819716,1748886279544,350.0,0.00041055,120]
[363819717,1748886285527,460.0,0.00041095,120]
[363819718,1748886301650,861.64,0.00041095,120]
[363819719,1748886304386,460.0,0.00041095,120]
[363819720,1748886310449,460.0,0.00041095,120]
[363819721,1748886313389,479.68,0.00041095,120]
[363819722,1748886315921,460.0,0.00041095,120]
[363819723,1748886321224,460.0,0.00041095,120]
[363819724,1748886325603,460.0,0.00041095,120]
[363819725,1748886333358,460.0,0.00041095,120]
[363819726,1748886341196,460.0,0.00041095,120]
[363819727,1748886342380,460.0,0.00041095,120]
[363819728,1748886354287,695.05,0.00041095,120]
[363819729,1748886360371,1020.09,0.00041095,120]
[363819730,1748886363584,460.0,0.00041095,120]
[363819731,1748886368116,460.0,0.00041095,120]
[363819732,1748886379798,634.21,0.00041095,120]
[363819733,1748886387377,460.0,0.00041095,120]
[363819734,1748886391780,460.0,0.00041095,120]
[363819735,1748886394882,460.0,0.00041095,120]
[363819736,1748886401096,460.0,0.00041095,120]
[363819737,1748886409931,896.45,0.00041095,120]
[363819738,1748886415588,882.07,0.00041095,120]
[363819739,1748886446487,460.0,0.00041095,120]
[363819740,1748886448304,987.0,0.00041096,120]
[363819741,1748886451116,460.0,0.00041095,120]
[363819742,1748886488403,1109.61,0.00041095,120]
[363819743,1748886495841,2625.47,0.00041095,120]
[363819744,1748886507055,1002.0971997,0.00041,120]
[363819745,1748886507767,630.06,0.00041095,120]
[363819747,1748886511999,300.0,0.00041095,120]
[363819748,1748886523365,1256.56,0.00041095,120]
[363819749,1748886525050,825.74,0.00041095,120]
[363819751,1748886536764,460.0,0.00041095,120]
[363819752,1748886539682,460.0,0.00041095,120]
[363819753,1748886541752,460.0,0.00041095,120]
[363819754,1748886559412,460.0,0.00041095,120]
[363819756,1748886561755,460.0,0.00041095,120]
[363819757,1748886564344,460.0,0.00041095,120]
[363819758,1748886566774,460.0,0.00041095,120]
[363819759,1748886572860,460.0,0.00041095,120]
[363819760,1748886575367,666.09,0.00041095,120]
[363819761,1748886580524,460.0,0.00041095,120]
[363819762,1748886584758,460.0,0.00041095,120]
[363819764,1748886588785,350.0,0.00041055,120]
[363819765,1748886589140,460.0,0.00041095,120]
[363819766,1748886600129,607.78,0.00041095,120]
[363819767,1748886609171,1420.84,0.00041095,120]
[363819769,1748886613204,460.0,0.00041095,120]
[363819770,1748886616151,460.0,0.00041095,120]
[363819771,1748886620628,162.78,0.00013699,2]
[363819772,1748886622883,460.0,0.00041095,120]
[363819778,1748886632241,-1115.157653,0.00019491,2]
[363819779,1748886632251,-310.7103528,0.00019491,2]
[363819780,1748886632260,-151.0,0.00019491,2]
[363819781,1748886632270,-207.4,0.00019491,2]
[363819782,1748886632280,-250.0,0.00019492,2]
[363819783,1748886632289,-400.0,0.00019492,2]
[363819784,1748886632299,-400.0,0.00019494,2]
[363819785,1748886632308,-152.2319942,0.00019496,2]
[363819786,1748886632349,-97.7680058,0.00019496,2]
[363819787,1748886632359,-400.0,0.00019496,2]
[363819788,1748886632369,-120.16341629,0.00019496,2]
[363819789,1748886632452,-1079.83658371,0.00019496,2]
[363819790,1748886632462,-300.0,0.00019501,2]
[363819791,1748886632472,-2223.46100221,0.00019502,2]
[363819792,1748886632509,-1315.8,0.00019502,2]
[363819793,1748886632521,-2166.30819884,0.00019502,2]
[363819794,1748886632533,-1670.45339367,0.00019502,2]
[363819795,1748886632542,-565.02,0.00019999,2]
[363819796,1748886632553,-151.0,0.0002,2]
[363819797,1748886632563,-151.0,0.0002,2]
[363819799,1748886632573,-151.0,0.0002,2]
[363819801,1748886632583,-151.0,0.0002,2]
[363819802,1748886632592,-180.841474,0.0002,2]
[363819803,1748886632602,-151.0,0.0002,2]
[363819804,1748886632612,-151.0,0.0002,2]
[363819805,1748886632621,-151.0,0.0002,2]
[363819806,1748886632631,-232.12173,0.0002,2]
[363819807,1748886632640,-503.353381,0.0002,2]
[363819808,1748886632650,-503.353381,0.0002,2]
[363819809,1748886632660,-503.353381,0.0002,2]
[363819810,1748886632669,-503.353381,0.0002,2]
[363819811,1748886632679,-151.0,0.0002,2]